bitfinex/quotes_SOLUSD_20220306
["timestamp","ask_amount","ask_price","bid_price","bid_amount"]
[1646548211474,112.5,88.926,88.86,16.88]
[1646548212191,50.5098751,88.927,88.86,16.88]
[1646548214993,112.5,88.926,88.86,16.88]
[1646548215794,67.91,88.925,88.854,24.0451]
[1646548215995,67.91,88.913,88.854,24.0451]
[1646548216194,112.5,88.91,88.854,24.0451]
[1646548216800,112.5,88.908,88.854,72.46425873]
[1646548217705,112.5,88.908,88.854,24.0451]
[1646548218300,47.05401038,88.909,88.854,24.0451]
[1646548218501,112.5,88.908,88.854,24.0451]
[1646548219499,47.05401038,88.909,88.854,24.0451]
[1646548220300,67.91,88.907,88.851,23.0141]
[1646548220502,67.91,88.901,88.851,23.0141]
[1646548220701,112.5,88.9,88.851,23.0141]
[1646548221302,112.5,88.9,88.852,63.95166583]
[1646548221502,112.5,88.9,88.851,23.0141]
[1646548222404,67.91,88.895,88.825,58.96830164]
[1646548222604,112.5,88.89,88.825,58.96830164]
[1646548223702,112.5,88.89,88.823,22.6466]
[1646548224203,112.5,88.89,88.824,23.6126]
[1646548224902,112.5,88.89,88.824,80.53608055]
[1646548226104,67.91,88.885,88.824,23.6126]
[1646548226307,67.91,88.873,88.824,23.6126]
[1646548226504,112.5,88.87,88.824,23.6126]
[1646548227105,112.5,88.868,88.824,23.6126]
[1646548227503,53.35156419,88.869,88.824,23.6126]
[1646548228507,112.5,88.868,88.824,23.6126]
[1646548230912,112.5,88.868,88.805,57.52535788]
[1646548231110,112.5,88.868,88.806,23.9691]
[1646548232613,112.5,88.86,88.806,23.9691]
[1646548237123,112.5,88.85,88.806,23.9691]
[1646548237423,56.80136776,88.849,88.806,23.9691]
[1646548237625,112.5,88.848,88.806,23.9691]
[1646548240127,112.5,88.84,88.79,23.094]
[1646548240331,122.23,88.84,88.79,23.094]
[1646548241929,112.5,88.84,88.79,23.094]
[1646548245656,67.91,88.831,88.777,23.0553]
[1646548245853,112.5,88.82,88.777,23.0553]
[1646548246053,112.5,88.818,88.777,23.0553]
[1646548247252,112.5,88.81,88.743,22.5618]
[1646548247453,67.91,88.801,88.744,24.6795]
[1646548247653,112.5,88.79,88.744,24.6795]
[1646548248252,112.5,88.788,88.744,24.6795]
[1646548248454,67.91,88.785,88.71,36.21186713]
[1646548248654,112.5,88.78,88.711,44.67547186]
[1646548248854,112.5,88.776,88.711,44.67547186]
[1646548249053,112.5,88.787,88.72,16.9066]
[1646548249453,112.5,88.787,88.721,59.84877257]
[1646548249853,180.41,88.781,88.722,22.8829]
[1646548252358,113.475,88.816,88.722,22.8829]
[1646548252558,1.51996068,88.826,88.722,22.8829]
[1646548252559,23.4163,88.815,88.723,22.14210239]
[1646548252959,23.4163,88.815,88.724,44.37927839]
[1646548253360,47.74612075,88.814,88.725,44.37927839]
[1646548253761,47.74612075,88.814,88.726,44.37927839]
[1646548253959,47.74612075,88.814,88.73,16.36]
[1646548254159,47.74612075,88.814,88.73,33.2644]
[1646548254360,47.74612075,88.814,88.731,22.237176]
[1646548254561,160.24612075,88.814,88.731,25.07331126]
[1646548254961,160.24612075,88.814,88.732,2.83613526]
[1646548255565,160.24612075,88.814,88.733,24.4688]
[1646548255963,160.24612075,88.814,88.734,2.83613526]
[1646548256163,160.24612075,88.814,88.74,16.9016]
[1646548259964,47.74612075,88.814,88.74,16.9016]
[1646548260169,1.51996068,88.844,88.741,2.83613526]
[1646548260369,1.51996068,88.844,88.77,16.8968]
[1646548260569,47.2861,88.847,88.771,24.3453]
[1646548260768,0.9675,88.846,88.771,24.3453]
[1646548260968,47.2861,88.847,88.771,24.3453]
[1646548261168,47.2861,88.847,88.772,58.09800257]
[1646548261568,47.2861,88.847,88.773,2.83613526]
[1646548262168,47.2861,88.847,88.78,16.8949]
[1646548262369,47.2861,88.847,88.78,33.2549]
[1646548263768,53.13071718,88.854,88.78,33.2549]
[1646548265972,53.13071718,88.854,88.773,2.83613526]
[1646548266173,53.13071718,88.854,88.78,16.36]
[1646548266972,112.5,88.853,88.78,16.36]
[1646548267173,112.5,88.853,88.78,33.2549]
[1646548267971,67.91,88.852,88.78,33.2549]
[1646548268173,180.41,88.851,88.78,33.2549]
[1646548268573,287.431348,88.78,88.772,55.26186731]
[1646548269071,174.792248,88.78,88.772,55.26186731]
[1646548269273,164.36939044,88.78,88.772,55.26186731]
[1646548269673,51.73059044,88.78,88.772,55.26186731]
[1646548270073,58.87113256,88.823,88.773,20.0]
[1646548270271,20.0,88.85,88.773,20.0]
[1646548270272,24.8905,88.85,88.773,20.0]
[1646548270471,24.8905,88.85,88.774,29.6391]
[1646548270673,67.91,88.854,88.774,29.6391]
[1646548270872,67.91,88.854,88.775,0.48658336]
[1646548271073,67.91,88.874,88.781,0.49107559]
[1646548271272,112.5,88.87,88.782,28.4698]
[1646548271872,112.5,88.87,88.782,53.54311126]
[1646548272074,112.5,88.87,88.79,16.8936]
[1646548272274,112.5,88.872,88.791,60.06964385]
[1646548272573,112.5,88.87,88.791,86.91587911]
[1646548272872,112.5,88.87,88.792,2.83613526]
[1646548273074,55.81217826,88.873,88.793,5.628]
[1646548273276,55.81217826,88.873,88.811,53.6350179]
[1646548273577,55.81217826,88.873,88.813,0.71163194]
[1646548273773,0.9996,88.904,88.814,5.627]
[1646548273972,0.9996,88.904,88.816,0.71163194]
[1646548274172,0.9996,88.904,88.821,0.71163194]
[1646548274373,0.9996,88.904,88.822,5.626]
[1646548274572,0.9996,88.904,88.83,16.8816]
[1646548274873,0.9996,88.904,88.831,69.58004625]
[1646548274874,112.5,88.902,88.831,69.58004625]
[1646548275073,112.5,88.9,88.832,22.5383]
[1646548276473,112.5,88.892,88.832,22.5383]
[1646548276673,52.64659183,88.903,88.832,22.5383]
[1646548276674,112.5,88.89,88.832,22.5383]
[1646548277374,112.5,88.89,88.833,5.626]
[1646548277575,112.5,88.888,88.833,5.626]
[1646548278177,112.5,88.888,88.832,22.5383]
[1646548278976,406.45607152,88.832,88.823,5.626]
[1646548279376,406.45607152,88.832,88.82,16.8875]
[1646548279377,406.45607152,88.832,88.821,5.628]
[1646548283986,406.45607152,88.832,88.822,0.49263467]
[1646548284283,406.45607152,88.832,88.82,16.8875]
[1646548287408,406.45607152,88.832,88.821,5.628]
[1646548288507,406.45607152,88.832,88.82,16.8875]
[1646548289507,406.45607152,88.832,88.821,5.628]
[1646548297416,406.45607152,88.832,88.821,1.294724]
[1646548301819,406.45607152,88.832,88.82,16.8875]
[1646548302221,406.45607152,88.832,88.804,2.83613526]
[1646548302423,406.45607152,88.832,88.8,16.36]
[1646548304122,406.45607152,88.832,88.8,33.251]
[1646548310125,406.45607152,88.832,88.8,16.891]
[1646548313028,406.45607152,88.832,88.784,24.9795]
[1646548313828,406.45607152,88.832,88.771,2.83613526]
[1646548314027,406.45607152,88.832,88.78,16.8952]
[1646548314428,406.45607152,88.832,88.781,59.2925618]
[1646548314829,406.45607152,88.832,88.78,40.90456713]
[1646548315832,406.45607152,88.832,88.781,62.58090066]
[1646548316431,406.45607152,88.832,88.78,40.90456713]
[1646548316632,406.45607152,88.832,88.78,16.8952]
[1646548317633,406.45607152,88.832,88.772,24.2542]
[1646548317837,24.4126,88.831,88.772,24.2542]
[1646548319234,24.4126,88.831,88.767,24.00936713]
[1646548319235,112.5,88.83,88.767,24.00936713]
[1646548319434,112.5,88.83,88.754,24.00936713]
[1646548319635,112.5,88.83,88.75,16.9003]
[1646548320036,67.91,88.827,88.75,16.9003]
[1646548320234,112.5,88.82,88.75,16.9003]
[1646548320835,136.6463,88.82,88.75,16.9003]
[1646548321034,112.5,88.818,88.75,16.9003]
[1646548321235,112.5,88.812,88.75,16.9003]
[1646548321435,112.5,88.81,88.75,16.9003]
[1646548321836,112.5,88.8,88.73,36.10023526]
[1646548322037,112.5,88.79,88.71,16.36]
[1646548322240,112.5,88.788,88.714,2.83613526]
[1646548322436,112.5,88.788,88.719,24.00936713]
[1646548323135,112.5,88.786,88.719,24.00936713]
[1646548323335,112.5,88.78,88.719,24.00936713]
[1646548323536,121.73,88.78,88.72,21.95080408]
[1646548323937,121.73,88.78,88.719,24.00936713]
[1646548324241,121.73,88.78,88.721,24.00936713]
[1646548326042,121.73,88.78,88.722,5.633]
[1646548327143,67.91,88.777,88.722,5.633]
[1646548327344,67.91,88.763,88.697,22.0875078]
[1646548327544,112.5,88.76,88.692,16.5434]
[1646548327746,112.5,88.76,88.683,24.4569]
[1646548327747,67.91,88.755,88.683,24.4569]
[1646548327967,112.5,88.75,88.683,24.4569]
[1646548328143,112.5,88.748,88.683,41.1981]
[1646548329346,50.0084898,88.749,88.683,41.1981]
[1646548329547,112.5,88.748,88.683,41.1981]
[1646548329746,112.5,88.748,88.684,58.55065911]
[1646548329947,112.5,88.746,88.684,58.55065911]
[1646548331045,112.5,88.746,88.684,5.635]
[1646548331448,112.5,88.74,88.684,5.635]
[1646548331646,120.24,88.74,88.684,5.635]
[1646548331847,7.74,88.74,88.684,5.635]
[1646548332047,112.5,88.739,88.684,5.635]
[1646548332246,7.74,88.74,88.684,5.635]
[1646548333447,67.91,88.744,88.684,5.635]
[1646548333946,67.91,88.743,88.683,16.7412]
[1646548334748,112.5,88.745,88.683,16.7412]
[1646548334947,112.5,88.746,88.683,16.7412]
[1646548337550,67.91,88.733,88.667,5.636]
[1646548337751,112.5,88.73,88.667,5.636]
[1646548337949,112.5,88.73,88.662,22.00604113]
[1646548338352,112.5,88.73,88.671,2.83613526]
[1646548338752,112.5,88.73,88.662,22.00604113]
[1646548339955,23.898,88.732,88.662,22.00604113]
[1646548340155,180.41,88.731,88.662,43.21896446]
[1646548340355,180.41,88.731,88.662,22.00604113]
[1646548341158,23.898,88.732,88.662,22.00604113]
[1646548341359,23.898,88.732,88.671,0.48056941]
[1646548341558,5.373,88.766,88.671,0.48056941]
[1646548341760,28.5338,88.775,88.672,46.05509972]
[1646548341960,28.5338,88.775,88.674,0.83464169]
[1646548342359,141.0338,88.775,88.68,16.9095]
[1646548342560,135.6508,88.775,88.68,33.2695]
[1646548342760,135.6508,88.775,88.681,59.44807776]
[1646548342975,23.1508,88.775,88.682,54.1217103]
[1646548343177,23.1508,88.775,88.683,24.48138897]
[1646548343378,23.1508,88.775,88.683,80.63059788]
[1646548343580,23.1508,88.775,88.684,21.21292333]
[1646548343777,23.1508,88.775,88.686,0.62658897]
[1646548343979,23.1508,88.775,88.685,22.5205]
[1646548343980,56.9712724,88.774,88.7,16.36]
[1646548344176,56.9712724,88.774,88.701,22.5205]
[1646548344578,56.9712724,88.774,88.702,2.83613526]
[1646548345177,56.9712724,88.774,88.72,16.9067]
[1646548347881,112.5,88.773,88.72,16.9067]
[1646548348482,180.41,88.771,88.72,16.9067]
[1646548348684,56.9712724,88.774,88.72,16.9067]
[1646548349681,112.5,88.773,88.72,16.9067]
[1646548353792,279.80623256,88.72,88.71,46.12361071]
[1646548354189,279.80623256,88.72,88.702,2.83613526]
[1646548355088,279.80623256,88.72,88.71,16.9083]
[1646548355596,3.03219997,88.719,88.71,14.4083]
[1646548355788,279.80623256,88.72,88.71,14.4083]
[1646548356190,279.80623256,88.72,88.702,2.83613526]
[1646548356392,279.80623256,88.72,88.681,2.83613526]
[1646548356790,56.9712724,88.719,88.681,2.83613526]
[1646548358191,56.9712724,88.719,88.69,16.9123]
[1646548359394,279.80623256,88.72,88.69,16.9123]
[1646548365998,279.80623256,88.72,88.668,2.83613526]
[1646548365999,112.5,88.719,88.668,2.83613526]
[1646548366198,1.51996068,88.712,88.668,2.83613526]
[1646548366402,1.51996068,88.703,88.668,2.83613526]
[1646548366598,1.51996068,88.703,88.611,23.7327]
[1646548366800,1.51996068,88.7,88.611,23.7327]
[1646548366999,112.5,88.698,88.612,48.06666849]
[1646548367397,137.0135,88.698,88.612,48.06666849]
[1646548368097,137.0135,88.698,88.63,16.9236]
[1646548368298,137.0135,88.698,88.63,77.09942503]
[1646548369302,137.0135,88.698,88.63,16.9236]
[1646548372805,92.819539,88.63,88.625,23.1483]
[1646548373005,92.819539,88.63,88.606,22.675]
[1646548373206,3.03219997,88.629,88.6,16.36]
[1646548374207,92.819539,88.63,88.61,16.9271]
[1646548376208,92.819539,88.63,88.595,53.48952696]
[1646548379410,92.819539,88.63,88.6,16.929]
[1646548382319,24.5135,88.698,88.603,44.58109153]
[1646548382521,24.5135,88.698,88.603,95.80444054]
[1646548382720,24.5135,88.698,88.604,24.58109153]
[1646548382919,24.5135,88.698,88.605,0.93121375]
[1646548383219,57.16567268,88.697,88.64,16.9224]
[1646548383418,57.16567268,88.697,88.641,45.70764648]
[1646548388125,57.16567268,88.697,88.642,5.638]
[1646548388525,57.16567268,88.697,88.643,0.50109859]
[1646548388726,112.5,88.696,88.644,5.638]
[1646548388925,112.5,88.696,88.621,22.8379]
[1646548388926,112.5,88.696,88.641,5.638]
[1646548389128,112.5,88.696,88.622,5.638]
[1646548390029,112.5,88.69,88.622,5.638]
[1646548390627,112.5,88.69,88.621,22.8379]
[1646548390828,67.91,88.685,88.621,22.8379]
[1646548391030,112.5,88.68,88.622,5.639]
[1646548391231,112.5,88.68,88.604,5.64]
[1646548391429,67.91,88.675,88.604,5.64]
[1646548391748,112.5,88.67,88.604,5.64]
[1646548393052,67.91,88.663,88.591,5.64]
[1646548393256,112.5,88.66,88.591,5.64]
[1646548393452,112.5,88.658,88.591,5.64]
[1646548393851,112.5,88.658,88.591,5.34]
[1646548394051,49.74075186,88.657,88.591,5.34]
[1646548394451,49.74075186,88.657,88.6,16.9294]
[1646548394651,49.74075186,88.657,88.601,5.641]
[1646548396653,112.5,88.656,88.593,5.641]
[1646548396853,112.5,88.656,88.581,25.64803526]
[1646548396854,112.5,88.656,88.582,5.641]
[1646548397254,112.5,88.65,88.582,5.641]
[1646548397453,112.5,88.65,88.581,22.8119]
[1646548398256,112.5,88.648,88.581,22.8119]
[1646548398556,112.5,88.64,88.581,22.8119]
[1646548398756,112.5,88.638,88.581,22.8119]
[1646548398957,120.48,88.638,88.581,22.8119]
[1646548399656,120.48,88.638,88.582,5.642]
[1646548400057,112.5,88.63,88.568,5.642]
[1646548400256,112.5,88.63,88.565,5.643]
[1646548400459,112.5,88.628,88.562,5.643]
[1646548400656,5.591,88.627,88.562,5.643]
[1646548400856,5.591,88.627,88.556,5.643]
[1646548402457,5.591,88.627,88.556,2.83613526]
[1646548402658,5.591,88.627,88.557,5.643]
[1646548406661,112.5,88.624,88.557,5.643]
[1646548406868,112.5,88.62,88.557,5.643]
[1646548407061,121.08,88.62,88.554,5.644]
[1646548408463,121.08,88.62,88.547,5.644]
[1646548408662,112.5,88.618,88.544,5.644]
[1646548408862,112.5,88.616,88.544,5.644]
[1646548409264,112.5,88.616,88.545,45.61534621]
[1646548409463,112.5,88.616,88.546,5.644]
[1646548409663,279.806233,88.557,88.546,5.644]
[1646548410063,279.806233,88.557,88.544,5.646]
[1646548410867,49.74075186,88.556,88.543,2.83613526]
[1646548411467,49.74075186,88.556,88.525,2.83613526]
[1646548411665,49.74075186,88.556,88.526,5.647]
[1646548411865,279.806233,88.557,88.526,5.647]
[1646548412064,279.806233,88.557,88.497,5.647]
[1646548412265,279.806233,88.557,88.5,16.36]
[1646548412467,279.806233,88.557,88.501,5.647]
[1646548412865,56.35598565,88.556,88.502,58.36823727]
[1646548413064,56.35598565,88.556,88.503,5.647]
[1646548413464,56.35598565,88.556,88.51,16.9465]
[1646548413664,279.806233,88.557,88.511,5.647]
[1646548419873,279.806233,88.557,88.512,0.92670105]
[1646548420074,279.806233,88.557,88.511,0.92670105]
[1646548420673,57.82835071,88.556,88.511,0.92670105]
[1646548420873,57.82835071,88.556,88.51,16.9465]
[1646548421273,57.82835071,88.556,88.511,5.647]
[1646548422977,57.82835071,88.556,88.507,5.647]
[1646548424681,57.82835071,88.556,88.506,17.012]
[1646548426910,279.806233,88.557,88.506,17.012]
[1646548428008,279.806233,88.557,88.507,5.647]
[1646548428408,279.806233,88.557,88.51,16.9461]
[1646548428609,279.806233,88.557,88.511,6.43622378]
[1646548428812,279.806233,88.557,88.511,64.48358057]
[1646548429012,166.880533,88.557,88.511,49.62517552]
[1646548429211,166.880533,88.557,88.512,73.27435034]
[1646548429411,166.880533,88.557,88.513,63.87120756]
[1646548429618,166.880533,88.557,88.513,137.1455579]
[1646548429816,166.880533,88.557,88.514,55.21122153]
[1646548430014,166.880533,88.557,88.515,6.43622378]
[1646548430213,166.880533,88.557,88.52,33.2984]
[1646548430514,100.631433,88.557,88.521,6.43622378]
[1646548430712,100.631433,88.557,88.521,61.64744531]
[1646548430913,100.631433,88.557,88.521,64.48358057]
[1646548431213,100.631433,88.557,88.522,30.79809345]
[1646548431614,100.631433,88.557,88.523,2.83613526]
[1646548431813,100.631433,88.557,88.53,16.9413]
[1646548432015,100.631433,88.557,88.531,55.41423741]
[1646548432213,100.631433,88.557,88.532,0.4793722]
[1646548432414,100.631433,88.557,88.531,55.41423741]
[1646548433017,100.631433,88.557,88.532,58.62592061]
[1646548433319,100.631433,88.557,88.54,16.9398]
[1646548433516,100.631433,88.557,88.542,0.60647295]
[1646548433716,100.631433,88.557,88.544,0.60647295]
[1646548433920,100.631433,88.557,88.543,5.646]
[1646548433921,100.631433,88.557,88.546,52.86107832]
[1646548434116,100.631433,88.557,88.547,5.646]
[1646548434317,100.631433,88.557,88.548,0.46994561]
[1646548434516,100.631433,88.557,88.549,5.646]
[1646548434716,100.631433,88.557,88.547,5.646]
[1646548435317,100.631433,88.557,88.548,2.83613526]
[1646548435518,100.631433,88.557,88.546,52.25460537]
[1646548436521,95.631433,88.557,88.546,52.25460537]
[1646548436818,95.631433,88.557,88.547,2.83613526]
[1646548441523,95.631433,88.557,88.548,0.51255402]
[1646548441824,95.631433,88.557,88.547,2.83613526]
[1646548442023,95.631433,88.557,88.548,0.49036024]
[1646548443227,95.631433,88.557,88.547,2.83613526]
[1646548443825,95.631433,88.557,88.548,0.84674602]
[1646548444226,95.631433,88.557,88.549,2.83613526]
[1646548444529,95.631433,88.557,88.55,17.20674602]
[1646548444928,95.631433,88.557,88.55,16.36]
[1646548446230,95.631433,88.557,88.551,3.42399279]
[1646548446430,48.0143,88.62,88.551,3.42399279]
[1646548446729,1.51996068,88.627,88.571,0.88529307]
[1646548446932,1.51996068,88.635,88.58,16.36]
[1646548447232,47.6913,88.678,88.58,16.36]
[1646548447233,1.51996068,88.643,88.581,0.94959994]
[1646548447429,1.51996068,88.649,88.581,60.85249007]
[1646548447630,1.51996068,88.652,88.581,58.01635481]
[1646548447830,1.51996068,88.652,88.582,32.65362679]
[1646548448030,57.64618951,88.653,88.59,16.9281]
[1646548448232,57.64618951,88.653,88.591,51.61750056]
[1646548448529,57.64618951,88.653,88.591,53.50403588]
[1646548448832,24.3514,88.652,88.591,53.50403588]
[1646548449030,24.3514,88.652,88.591,2.83613526]
[1646548449231,24.3514,88.652,88.583,24.0769]
[1646548449431,1.51996068,88.647,88.583,24.0769]
[1646548449733,29.9774,88.652,88.583,24.0769]
[1646548449734,1.51996068,88.646,88.584,2.83613526]
[1646548449934,1.51996068,88.651,88.584,2.83613526]
[1646548450134,5.615,88.65,88.584,2.83613526]
[1646548450336,69.42996068,88.651,88.58,16.36]
[1646548450337,1.51996068,88.639,88.58,16.36]
[1646548450533,1.51996068,88.638,88.58,16.36]
[1646548450737,1.51996068,88.641,88.58,16.36]
[1646548450936,1.51996068,88.644,88.581,2.83613526]
[1646548451135,1.51996068,88.644,88.581,63.61115359]
[1646548451335,1.51996068,88.648,88.582,24.2318]
[1646548451535,1.51996068,88.648,88.582,27.06793526]
[1646548451736,1.51996068,88.648,88.583,2.83613526]
[1646548451936,1.51996068,88.65,88.583,2.83613526]
[1646548452136,25.87136068,88.652,88.583,2.83613526]
[1646548452337,25.87136068,88.652,88.583,32.62046812]
[1646548452736,25.87136068,88.652,88.584,2.83613526]
[1646548452935,1.51996068,88.651,88.584,2.83613526]
[1646548453434,1.51996068,88.651,88.583,29.78433286]
[1646548453635,25.87136068,88.652,88.583,29.78433286]
[1646548454035,25.87136068,88.652,88.582,24.2318]
[1646548454235,1.51996068,88.651,88.582,24.2318]
[1646548455136,1.51996068,88.65,88.582,24.2318]
[1646548455338,1.51996068,88.651,88.582,24.2318]
[1646548457041,1.51996068,88.651,88.59,16.9312]
[1646548457240,25.87136068,88.652,88.59,16.9312]
[1646548457442,1.51996068,88.649,88.59,16.9312]
[1646548458243,25.87136068,88.652,88.59,16.9312]
[1646548459343,1.51996068,88.651,88.59,16.9312]
[1646548459742,25.87136068,88.652,88.59,16.9312]
[1646548459947,1.51996068,88.651,88.59,16.9312]
[1646548461047,1.51996068,88.65,88.59,16.9312]
[1646548461852,1.51996068,88.65,88.582,24.2318]
[1646548462047,1.51996068,88.648,88.582,24.2318]
[1646548462247,1.51996068,88.647,88.582,24.2318]
[1646548463449,1.51996068,88.646,88.582,24.2318]
[1646548463848,24.3514,88.652,88.582,24.2318]
[1646548463849,1.51996068,88.645,88.582,24.2318]
[1646548464747,1.51996068,88.648,88.582,24.2318]
[1646548464948,1.51996068,88.649,88.582,24.2318]
[1646548465351,1.51996068,88.65,88.582,24.2318]
[1646548465551,1.51996068,88.65,88.59,16.9311]
[1646548466552,1.51996068,88.649,88.59,16.9311]
[1646548467565,1.51996068,88.648,88.59,16.9311]
[1646548468366,1.51996068,88.649,88.59,16.9311]
[1646548468768,1.51996068,88.648,88.59,16.9311]
[1646548468968,1.51996068,88.649,88.591,5.642]
[1646548469368,1.51996068,88.647,88.591,5.642]
[1646548470172,1.51996068,88.647,88.59,16.9311]
[1646548472572,1.51996068,88.646,88.59,16.9311]
[1646548472774,1.51996068,88.645,88.59,16.9311]
[1646548473274,1.51996068,88.643,88.59,16.9311]
[1646548473874,1.51996068,88.645,88.592,0.576545]
[1646548474074,1.51996068,88.647,88.601,0.576545]
[1646548474275,1.51996068,88.647,88.602,5.641]
[1646548474475,1.51996068,88.653,88.603,0.67700593]
[1646548474676,1.51996068,88.656,88.604,55.98037886]
[1646548474877,1.51996068,88.658,88.605,0.67700593]
[1646548475077,1.51996068,88.658,88.606,28.5123]
[1646548475378,1.51996068,88.658,88.607,0.67700593]
[1646548475682,1.51996068,88.661,88.609,0.67700593]
[1646548475877,1.51996068,88.661,88.61,16.36]
[1646548476079,1.51996068,88.655,88.611,0.67700593]
[1646548476277,1.51996068,88.659,88.612,5.641]
[1646548476478,1.51996068,88.66,88.612,5.641]
[1646548476679,1.51996068,88.66,88.611,5.641]
[1646548477278,1.51996068,88.656,88.611,5.641]
[1646548477479,44.20407743,88.655,88.611,5.641]
[1646548478283,1.51996068,88.658,88.62,16.9253]
[1646548478485,1.51996068,88.661,88.621,5.64]
[1646548478686,1.51996068,88.661,88.622,0.46926387]
[1646548478881,1.51996068,88.669,88.623,5.64]
[1646548479086,1.51996068,88.669,88.622,2.83613526]
[1646548479281,1.51996068,88.67,88.624,51.79390689]
[1646548479681,1.51996068,88.67,88.63,16.9225]
[1646548480284,1.51996068,88.671,88.63,16.9225]
[1646548480888,61.22635071,88.673,88.63,16.9225]
[1646548481286,1.51996068,88.675,88.63,16.9225]
[1646548481484,1.51996068,88.675,88.631,0.49056892]
[1646548481684,1.51996068,88.675,88.63,16.9225]
[1646548481984,26.16926068,88.676,88.63,16.9225]
[1646548482184,55.69598962,88.675,88.63,16.9225]
[1646548482385,55.69598962,88.675,88.631,5.639]
[1646548484991,57.2159503,88.675,88.617,5.639]
[1646548485192,1.51996068,88.671,88.617,5.639]
[1646548485491,1.51996068,88.671,88.61,16.9273]
[1646548485892,1.51996068,88.669,88.617,5.64]
[1646548486094,1.51996068,88.668,88.617,5.64]
[1646548486494,1.51996068,88.667,88.617,5.64]
[1646548486892,1.51996068,88.667,88.611,5.64]
[1646548487694,1.51996068,88.668,88.611,5.64]
[1646548488391,1.51996068,88.668,88.617,5.64]
[1646548490993,1.51996068,88.671,88.617,5.64]
[1646548492694,1.51996068,88.67,88.617,5.64]
[1646548493495,1.51996068,88.669,88.617,5.64]
[1646548493696,1.51996068,88.668,88.617,5.64]
[1646548495395,1.51996068,88.668,88.608,60.15630739]
[1646548495596,1.51996068,88.662,88.608,60.15630739]
[1646548495795,41.16945038,88.658,88.608,60.15630739]
[1646548495995,112.5,88.657,88.59,16.9312]
[1646548496195,1.51996068,88.653,88.591,5.641]
[1646548496395,1.51996068,88.645,88.583,5.641]
[1646548496799,1.51996068,88.644,88.583,5.641]
[1646548497096,55.69598962,88.643,88.584,62.02293948]
[1646548497296,24.88586068,88.642,88.585,5.642]
[1646548497496,1.51996068,88.641,88.585,5.642]
[1646548497997,1.51996068,88.641,88.584,62.02293948]
[1646548498196,24.88586068,88.642,88.584,62.02293948]
[1646548498898,23.3659,88.642,88.584,62.02293948]
[1646548499397,24.88586068,88.642,88.584,62.02293948]
[1646548499797,5.642,88.641,88.584,62.02293948]
[1646548500498,23.3659,88.642,88.584,62.02293948]
[1646548501298,23.3659,88.642,88.585,5.642]
[1646548502797,1.51996068,88.641,88.585,5.642]
[1646548503099,1.51996068,88.641,88.584,62.02293948]
[1646548503597,23.3659,88.642,88.584,62.02293948]
[1646548503798,24.88586068,88.642,88.584,62.02293948]
[1646548504498,23.3659,88.642,88.584,62.02293948]
[1646548504899,24.88586068,88.642,88.584,62.02293948]
[1646548505699,23.3659,88.642,88.584,62.02293948]
[1646548513617,24.88586068,88.642,88.584,62.02293948]
[1646548514015,1.51996068,88.641,88.584,62.02293948]
[1646548515633,1.51996068,88.641,88.585,0.94959994]
[1646548516433,1.51996068,88.64,88.585,0.94959994]
[1646548516631,1.51996068,88.64,88.584,62.02293948]
[1646548517236,24.88586068,88.642,88.584,62.02293948]
[1646548517633,1.51996068,88.634,88.584,62.02293948]
[1646548517837,40.29827589,88.629,88.584,62.02293948]
[1646548518134,41.81823657,88.629,88.584,62.02293948]
[1646548518335,1.51996068,88.626,88.56,27.00405034]
[1646548518535,1.51996068,88.625,88.565,23.4355]
[1646548518835,1.51996068,88.622,88.565,23.4355]
[1646548519334,1.51996068,88.622,88.566,48.32236059]
[1646548519737,1.51996068,88.621,88.566,48.32236059]